[Event "Wuerttemberg Rapid Teams 2024"]
[Site "B?blingen, Germany"]
[Date "2024.04.13"]
[Round "2.38"]
[White "Bodriyenko, Markiyan"]
[Black "Baur, Frank"]
[Result "1-0"]
[ECO "B22"]
[WhiteElo "1728"]
[BlackElo "2050"]
[Annotator "RC"]
[PlyCount "103"]
[EventDate "2024.04.13"]
[EventType "team-tourn"]
[SourceTitle "playchess.com"]
[Source "ChessBase"]
[SourceQuality "1"]
[TimeControl "900+5"]

1. e4 {[%emt 0:00:01]} c5 {[%emt 0:00:13]} 2. Nf3 {[%emt 0:00:02]} Nc6 {[%emt 0:00:01]} 3. c3 {[%emt 0:00:01]} Nf6 {[%emt 0:00:12]} 4. e5 {[%emt 0:00:02]} Nd5 {[%emt 0:00:02]} 5. d4 {[%emt 0:00:03]} cxd4 {[%emt 0:00:02]} 6. cxd4 {[%emt 0:00:02]} d6 {[%emt 0:00:17]} 7. Bc4 {[%emt 0:00:32]} Nb6 {[%emt 0:00:12]} 8. Bb3 {[%emt 0:00:30]} dxe5 {[%emt 0:00:05]} 9. Nxe5 {[%emt 0:00:10]} Nxe5 {[%emt 0:00:21]} 10. dxe5 {[%emt 0:00:02]} Qxd1+ {[%emt 0:00:11]} 11. Bxd1 {[%emt 0:00:31]} g6 {[%emt 0:02:33]} 12. Bb3 {[%emt 0:00:40]} Bg7 {[%emt 0:00:08]} 13. f4 {[%emt 0:00:07]} O-O {[%emt 0:00:50]} 14. O-O {[%emt 0:00:08]} Bf5 {[%emt 0:00:40]} 15. Nc3 {[%emt 0:00:26]} Rac8 {[%emt 0:00:22]} 16. Be3 {[%emt 0:00:24]} Rfd8 {[%emt 0:01:04]} 17. Rfd1 {[%emt 0:01:02]} Bg4 {[%emt 0:02:42]} 18. Rxd8+ {[%emt 0:00:18]} Rxd8 {[%emt 0:00:00]} 19. h3 {[%emt 0:00:03]} Bf5 {[%emt 0:00:46]} 20. Kf2 {[%emt 0:00:33]} g5 {[%emt 0:00:39]} 21. g4 {[%emt 0:01:07]} gxf4 {[%emt 0:00:19]} 22. Bxb6 {[%emt 0:00:01]} axb6 {[%emt 0:01:37]} 23. gxf5 {[%emt 0:00:02]} Rd2+ {[%emt 0:00:21]} 24. Kf3 {[%emt 0:00:28]} Bxe5 {[%emt 0:00:10]} 25. Rd1 {[%emt 0:00:41]} Rxb2 {[%emt 0:00:04]} 26. Ne4 {[%emt 0:00:16]} Rh2 {[%emt 0:00:38]} 27. Nf2 {[%emt 0:00:26]} h5 {[%emt 0:00:28]} 28. Rg1+ {[%emt 0:00:16]} Kf8 {[%emt 0:00:27]} 29. Rg2 {[%emt 0:00:14]} Rxg2 {[%emt 0:00:05]} 30. Kxg2 {[%emt 0:00:01]} e6 {[%emt 0:00:43]} 31. fxe6 {[%emt 0:00:10]} fxe6 {[%emt 0:00:01]} 32. Bxe6 {[%emt 0:00:02]} b5 {[%emt 0:00:06]} 33. Nd3 {[%emt 0:00:05]} Bd6 {[%emt 0:00:01]} 34. Kf3 {[%emt 0:00:13]} Ke7 {[%emt 0:00:01]} 35. Bb3 {[%emt 0:00:21]} Kf6 {[%emt 0:00:07]} 36. Nxf4 {[%emt 0:00:02]} Kg5 {[%emt 0:00:06]} 37. Ng2 {[%emt 0:00:31]} Kf5 {[%emt 0:00:21]} 38. Ne3+ {[%emt 0:00:04]} Kg5 {[%emt 0:00:03]} 39. Ke4 {[%emt 0:00:16]} Bc5 {[%emt 0:00:28]} 40. Nf5 {[%emt 0:00:19]} b6 {[%emt 0:00:08]} 41. Nd4 {[%emt 0:00:08]} b4 {[%emt 0:00:16]} 42. Ne6+ {[%emt 0:00:06]} Kh4 {[%emt 0:00:09]} 43. Nxc5 {[%emt 0:00:01]} bxc5 {[%emt 0:00:04]} 44. Be6 {[%emt 0:00:09]} c4 {[%emt 0:00:00]} 45. Bxc4 {[%emt 0:00:09]} Kxh3 {[%emt 0:00:01]} 46. Be6+ {[%emt 0:00:06]} Kg3 {[%emt 0:00:05]} 47. Kd4 {[%emt 0:00:01]} h4 {[%emt 0:00:01]} 48. Kc4 {[%emt 0:00:01]} h3 {[%emt 0:00:03]} 49. Bxh3 {[%emt 0:00:03]} Kxh3 {[%emt 0:00:01]} 50. Kxb4 {[%emt 0:00:01]} Kg4 {[%emt 0:00:01]} 51. a4 {[%emt 0:00:04]} Kf5 {[%emt 0:00:01]} 52. a5 {[%emt 0:00:02]} 1-0

[Event "Wuerttemberg Rapid Teams 2024"]
[Site "B?blingen, Germany"]
[Date "2024.04.13"]
[Round "2.39"]
[White "Schmid, Tim"]
[Black "Retzlaff, Kian"]
[Result "1-0"]
[ECO "B22"]
[WhiteElo "1765"]
[BlackElo "1793"]
[Annotator "NA RC COMBH"]
[PlyCount "135"]
[EventDate "2024.04.13"]
[EventType "team-tourn"]
[SourceTitle "playchess.com"]
[Source "ChessBase"]
[SourceQuality "1"]
[TimeControl "900+5"]

1. e4 {[%emt 0:00:02]} c5 {[%emt 0:00:01]} 2. Nf3 {[%emt 0:00:01]} e6 {[%emt 0:00:01]} 3. c3 {[%emt 0:00:02]} d5 {[%emt 0:00:05]} 4. exd5 {[%emt 0:00:02]} Qxd5 {[%emt 0:00:01]} 5. d4 {[%emt 0:00:02]} Nf6 {[%emt 0:00:24]} 6. Na3 {[%emt 0:00:02]} a6 {[%emt 0:00:17]} 7. Nc4 {[%emt 0:00:01]} Qd8 {[%emt 0:00:16]} 8. a4 {[%emt 0:00:08]} Nbd7 {[%emt 0:00:40]} 9. Be3 {[%emt 0:01:34]} b6 {[%emt 0:01:29]} 10. dxc5 {[%emt 0:00:18]} bxc5 {[%emt 0:01:04]} 11. Nd6+ {[%emt 0:00:49]} Bxd6 {[%emt 0:00:04]} 12. Qxd6 {[%emt 0:00:03]} Qe7 {[%emt 0:00:12]} 13. Qxe7+ {[%emt 0:00:31]} Kxe7 {[%emt 0:00:02]} 14. Nd2 {[%emt 0:01:36]} Rb8 {[%emt 0:00:25]} 15. Nc4 {[%emt 0:00:25]} Nd5 {[%emt 0:00:20]} 16. Bg5+ {[%emt 0:00:41]} f6 {[%emt 0:00:03]} 17. Bh4 {[%emt 0:00:01]} N7b6 {[%emt 0:00:53]} 18. Na5 {[%emt 0:02:04]} Bd7 {[%emt 0:00:56]} 19. Bg3 {[%emt 0:01:00]} Ra8 {[%emt 0:02:32]} 20. Nb3 {[%emt 0:00:36]} Nxa4 {[%emt 0:00:51]} 21. c4 {[%emt 0:03:23]} Nb4 {[%emt 0:00:21]} 22. O-O-O {[%emt 0:00:17]} e5 {[%emt 0:01:00]} 23. f4 {[%emt 0:00:32]} Bf5 {[%emt 0:01:16]} 24. fxe5 {[%emt 0:01:17]} Na2+ {[%emt 0:00:14]} 25. Kd2 {[%emt 0:00:15]} Rad8+ {[%emt 0:00:37]} 26. Ke1 {[%emt 0:00:04]} Rxd1+ {[%emt 0:00:28]} 27. Kxd1 {[%emt 0:00:02]} Nxb2+ {[%emt 0:00:07]} 28. Ke1 {[%emt 0:00:05]} Na4 {[%emt 0:00:27]} 29. exf6+ {[%emt 0:00:07]} gxf6 {[%emt 0:00:00]} 30. Kf2 {[%emt 0:00:06]} N2c3 {[%emt 0:00:16]} 31. Na5 {[%emt 0:00:09]} Ne4+ {[%emt 0:00:21]} 32. Kf3 {[%emt 0:00:07]} Ke6 {[%emt 0:00:58]} 33. Kf4 {[%emt 0:00:35]} Bg6 {[%emt 0:00:51]} 34. Be2 {[%emt 0:00:06]} Rd8 {[%emt 0:00:09]} 35. Bf3 {[%emt 0:00:11]} Rd4 {[%emt 0:00:05]} 36. Re1 {[%emt 0:00:05]} f5 {[%emt 0:00:07]} 37. Bf2 {[%emt 0:00:00]} Rd7 {[%emt 0:00:05]} 38. g4 {[%emt 0:00:00]} Nac3 {[%emt 0:00:09]} 39. gxf5+ {[%emt 0:00:00]} Bxf5 {[%emt 0:00:02]} 40. Bxe4 {[%emt 0:00:00]} Nxe4 {[%emt 0:00:05]} 41. Rxe4+ {[%emt 0:00:00]} Bxe4 {[%emt 0:00:02]} 42. Kxe4 {[%emt 0:00:00]} Rc7 {[%emt 0:00:09]} 43. Nb3 {[%emt 0:00:00]} Rc6 {[%emt 0:00:09]} 44. Nxc5+ {[%emt 0:00:00]} Ke7 {[%emt 0:00:03]} 45. Kd5 {[%emt 0:00:36]} Rh6 {[%emt 0:00:02]} 46. Bg3 {[%emt 0:00:05]} Rg6 {[%emt 0:00:05]} 47. Ne4 {[%emt 0:00:06]} a5 {[%emt 0:00:04]} 48. Kc5 {[%emt 0:00:08]} Rg4 {[%emt 0:00:02]} 49. Nc3 {[%emt 0:00:05]} Kd7 {[%emt 0:00:10]} 50. Kb5 {[%emt 0:00:04]} Rg5+ {[%emt 0:00:00]} 51. Nd5 {[%emt 0:00:05]} h5 {[%emt 0:00:08]} 52. Kxa5 {[%emt 0:00:05]} Rg4 {[%emt 0:00:05]} 53. Kb5 {[%emt 0:00:02]} h4 {[%emt 0:00:01]} 54. Nf6+ {[%emt 0:00:01]} Ke6 {[%emt 0:00:07]} 55. Nxg4 {[%emt 0:00:01]} hxg3 {[%emt 0:00:02]} 56. hxg3 {[%emt 0:00:02]} Kf5 {[%emt 0:00:01]} 57. Nh2 {[%emt 0:00:02]} Ke5 {[%emt 0:00:01]} 58. g4 {[%emt 0:00:01]} Ke6 {[%emt 0:00:01]} 59. Kc6 {[%emt 0:00:01]} Kf7 {[%emt 0:00:01]} 60. Kd7 {[%emt 0:00:01]} Kg7 {[%emt 0:00:02]} 61. c5 {[%emt 0:00:01]} Kg6 {[%emt 0:00:01]} 62. c6 {[%emt 0:00:01]} Kg7 {[%emt 0:00:00]} 63. c7 {[%emt 0:00:01]} Kg6 {[%emt 0:00:01]} 64. c8=Q {[%emt 0:00:03]} Kg7 {[%emt 0:00:01]} 65. Ke6 {[%emt 0:00:09]} Kh6 {[%emt 0:00:05]} 66. Kf6 {[%emt 0:00:09]} Kh7 {[%emt 0:00:01]} 67. Qd7+ {[%emt 0:00:02]} Kh6 {[%emt 0:00:01]} 68. Qg7# {[%emt 0:00:14]} 1-0

[Event "Wuerttemberg Rapid Teams 2024"]
[Site "B?blingen, Germany"]
[Date "2024.04.13"]
[Round "3.1"]
[White "Koelle, Tobias"]
[Black "Fischer, Andre"]
[Result "1/2-1/2"]
[ECO "A17"]
[WhiteElo "2467"]
[BlackElo "2248"]
[Annotator "RC"]
[PlyCount "59"]
[EventDate "2024.04.13"]
[EventType "team-tourn"]
[SourceTitle "playchess.com"]
[Source "ChessBase"]
[SourceQuality "1"]
[TimeControl "900+5"]

1. Nf3 {[%emt 0:00:23]} d5 {[%emt 0:00:03]} 2. e3 {[%emt 0:00:01]} Nf6 {[%emt 0:00:09]} 3. c4 {[%emt 0:00:01]} e6 {[%emt 0:00:02]} 4. Nc3 {[%emt 0:00:01]} Bd6 {[%emt 0:00:03]} 5. b3 {[%emt 0:00:05]} O-O {[%emt 0:00:03]} 6. Bb2 {[%emt 0:00:02]} Nbd7 {[%emt 0:00:03]} 7. Qc2 {[%emt 0:00:11]} a6 {[%emt 0:00:27]} 8. Be2 {[%emt 0:00:30]} b6 {[%emt 0:00:09]} 9. O-O {[%emt 0:01:51]} Re8 {[%emt 0:00:02]} 10. Rad1 {[%emt 0:00:03]} Bb7 {[%emt 0:00:07]} 11. cxd5 {[%emt 0:01:04]} exd5 {[%emt 0:00:05]} 12. Nd4 {[%emt 0:00:30]} Bf8 {[%emt 0:01:35]} 13. Nf5 {[%emt 0:00:44]} g6 {[%emt 0:00:08]} 14. Ng3 {[%emt 0:00:01]} Bg7 {[%emt 0:00:11]} 15. d4 {[%emt 0:00:13]} h5 {[%emt 0:00:05]} 16. Bd3 {[%emt 0:00:06]} Nf8 {[%emt 0:00:19]} 17. Rde1 {[%emt 0:00:36]} N8h7 {[%emt 0:01:05]} 18. Nge2 {[%emt 0:00:49]} Rc8 {[%emt 0:00:10]} 19. Rd1 {[%emt 0:00:38]} c5 {[%emt 0:00:54]} 20. dxc5 {[%emt 0:00:34]} bxc5 {[%emt 0:00:01]} 21. Na4 {[%emt 0:00:24]} Qc7 {[%emt 0:00:04]} 22. Qd2 {[%emt 0:01:03]} Ng4 {[%emt 0:02:26]} 23. Nf4 {[%emt 0:02:10]} Nhf6 {[%emt 0:00:26]} 24. h3 {[%emt 0:00:20]} Ne5 {[%emt 0:00:05]} 25. Rc1 {[%emt 0:00:25]} Nxd3 {[%emt 0:00:14]} 26. Qxd3 {[%emt 0:00:16]} c4 {[%emt 0:00:12]} 27. Qd4 {[%emt 0:00:15]} h4 {[%emt 0:00:53]} 28. Qb6 {[%emt 0:00:08]} Qe7 {[%emt 0:00:37]} 29. Rfd1 {[%emt 0:00:18]} cxb3 {[%emt 0:00:35]} 30. axb3 {[%emt 0:01:41]} 1/2-1/2

[Event "Wuerttemberg Rapid Teams 2024"]
[Site "B?blingen, Germany"]
[Date "2024.04.13"]
[Round "3.2"]
[White "Deuer, Marius"]
[Black "Weiss, Oliver"]
[Result "1-0"]
[ECO "E45"]
[WhiteElo "2439"]
[BlackElo "2220"]
[Annotator "RC"]
[PlyCount "43"]
[EventDate "2024.04.13"]
[EventType "team-tourn"]
[SourceTitle "playchess.com"]
[Source "ChessBase"]
[SourceQuality "1"]
[TimeControl "900+5"]

1. d4 {[%emt 0:00:03]} e6 {[%emt 0:00:08]} 2. c4 {[%emt 0:00:02]} Nf6 {[%emt 0:00:02]} 3. Nc3 {[%emt 0:00:07]} Bb4 {[%emt 0:00:04]} 4. e3 {[%emt 0:00:02]} b6 {[%emt 0:00:07]} 5. Nge2 {[%emt 0:00:04]} Ba6 {[%emt 0:00:19]} 6. a3 {[%emt 0:00:02]} Be7 {[%emt 0:00:10]} 7. Nf4 {[%emt 0:00:04]} d5 {[%emt 0:00:11]} 8. cxd5 {[%emt 0:00:02]} Bxf1 {[%emt 0:00:05]} 9. Kxf1 {[%emt 0:00:02]} exd5 {[%emt 0:00:10]} 10. g4 {[%emt 0:00:03]} h6 {[%emt 0:01:11]} 11. h4 {[%emt 0:00:03]} c6 {[%emt 0:00:38]} 12. Qf3 {[%emt 0:00:05]} Qc8 {[%emt 0:01:40]} 13. g5 {[%emt 0:00:40]} Qg4 {[%emt 0:01:19]} 14. Qxg4 {[%emt 0:00:59]} Nxg4 {[%emt 0:00:01]} 15. Rg1 {[%emt 0:00:15]} hxg5 {[%emt 0:02:28]} 16. hxg5 {[%emt 0:00:15]} f5 {[%emt 0:01:44]} 17. f3 {[%emt 0:02:08]} Nh2+ {[%emt 0:00:33]} 18. Kf2 {[%emt 0:01:00]} Nd7 {[%emt 0:00:56]} 19. Bd2 {[%emt 0:00:05]} Rh7 {[%emt 0:01:52]} 20. Rh1 {[%emt 0:01:41]} O-O-O {[%emt 0:00:44]} 21. Kg2 {[%emt 0:00:06]} Rdh8 {[%emt 0:00:06]} 22. Ng6 {[%emt 0:00:02]} 1-0

[Event "Wuerttemberg Rapid Teams 2024"]
[Site "B?blingen, Germany"]
[Date "2024.04.13"]
[Round "3.3"]
[White "Kocharin, Timur"]
[Black "Wunder, Niklas"]
[Result "0-1"]
[ECO "B81"]
[WhiteElo "2250"]
[BlackElo "2071"]
[Annotator "RC"]
[PlyCount "52"]
[EventDate "2024.04.13"]
[EventType "team-tourn"]
[SourceTitle "playchess.com"]
[Source "ChessBase"]
[SourceQuality "1"]
[TimeControl "900+5"]

1. e4 {[%emt 0:00:02]} c5 {[%emt 0:00:09]} 2. Nf3 {[%emt 0:00:02]} d6 {[%emt 0:00:02]} 3. d4 {[%emt 0:00:02]} cxd4 {[%emt 0:00:01]} 4. Nxd4 {[%emt 0:00:02]} Nf6 {[%emt 0:00:02]} 5. Nc3 {[%emt 0:00:02]} a6 {[%emt 0:00:01]} 6. h3 {[%emt 0:00:07]} e6 {[%emt 0:00:09]} 7. g4 {[%emt 0:00:11]} Nfd7 {[%emt 0:00:04]} 8. Bg2 {[%emt 0:00:55]} b5 {[%emt 0:00:15]} 9. a4 {[%emt 0:02:10]} b4 {[%emt 0:00:20]} 10. Na2 {[%emt 0:00:20]} Bb7 {[%emt 0:01:02]} 11. c3 {[%emt 0:01:03]} bxc3 {[%emt 0:00:04]} 12. Nxc3 {[%emt 0:00:03]} Nc6 {[%emt 0:01:22]} 13. O-O {[%emt 0:00:28]} Be7 {[%emt 0:00:13]} 14. Be3 {[%emt 0:00:31]} O-O {[%emt 0:00:16]} 15. f4 {[%emt 0:00:36]} Nxd4 {[%emt 0:00:28]} 16. Bxd4 {[%emt 0:00:28]} e5 {[%emt 0:00:02]} 17. Be3 {[%emt 0:00:14]} exf4 {[%emt 0:00:05]} 18. Bxf4 {[%emt 0:00:46]} Qb6+ {[%emt 0:00:31]} 19. Kh2 {[%emt 0:00:34]} Qxb2 {[%emt 0:00:11]} 20. Rb1 {[%emt 0:00:26]} Qxc3 {[%emt 0:00:13]} 21. Rxb7 {[%emt 0:00:03]} Rad8 {[%emt 0:00:32]} 22. e5 {[%emt 0:01:05]} dxe5 {[%emt 0:00:25]} 23. Rxd7 {[%emt 0:00:13]} exf4 {[%emt 0:00:07]} 24. Rxf4 {[%emt 0:00:29]} Rxd7 {[%emt 0:00:22]} 25. Qxd7 {[%emt 0:00:02]} Qe5 {[%emt 0:00:02]} 26. Qd4 {[%emt 0:01:33]} Bd6 {[%emt 0:00:04]} 0-1

[Event "Wuerttemberg Rapid Teams 2024"]
[Site "B?blingen, Germany"]
[Date "2024.04.13"]
[Round "3.4"]
[White "Junesch, Gerhard"]
[Black "Sokratov, Stanislav"]
[Result "1-0"]
[ECO "D37"]
[WhiteElo "2267"]
[BlackElo "2146"]
[Annotator "RC"]
[PlyCount "67"]
[EventDate "2024.04.13"]
[EventType "team-tourn"]
[SourceTitle "playchess.com"]
[Source "ChessBase"]
[SourceQuality "1"]
[TimeControl "900+5"]

1. d4 {[%emt 0:00:02]} d5 {[%emt 0:00:01]} 2. c4 {[%emt 0:00:02]} e6 {[%emt 0:00:01]} 3. Nf3 {[%emt 0:00:04]} Nf6 {[%emt 0:00:07]} 4. Nc3 {[%emt 0:00:02]} a6 {[%emt 0:00:05]} 5. cxd5 {[%emt 0:00:14]} exd5 {[%emt 0:00:01]} 6. Bg5 {[%emt 0:00:03]} Be6 {[%emt 0:00:06]} 7. Bxf6 {[%emt 0:00:08]} Qxf6 {[%emt 0:00:21]} 8. Qb3 {[%emt 0:00:01]} Ra7 {[%emt 0:03:31]} 9. h4 {[%emt 0:00:04]} h6 {[%emt 0:02:09]} 10. g3 {[%emt 0:02:10]} Qd8 {[%emt 0:00:06]} 11. Bh3 {[%emt 0:00:40]} Bxh3 {[%emt 0:00:36]} 12. Rxh3 {[%emt 0:00:01]} c6 {[%emt 0:00:01]} 13. Rh1 {[%emt 0:00:11]} Nd7 {[%emt 0:00:16]} 14. e4 {[%emt 0:01:09]} dxe4 {[%emt 0:01:32]} 15. Nxe4 {[%emt 0:00:03]} Qb6 {[%emt 0:00:10]} 16. Qe3 {[%emt 0:00:51]} Bb4+ {[%emt 0:03:01]} 17. Nc3+ {[%emt 0:00:03]} Kf8 {[%emt 0:00:43]} 18. O-O-O {[%emt 0:00:58]} Ra8 {[%emt 0:00:12]} 19. Rhe1 {[%emt 0:00:23]} Nf6 {[%emt 0:00:45]} 20. Ne5 {[%emt 0:00:38]} g6 {[%emt 0:01:01]} 21. Qf3 {[%emt 0:05:57]} Kg7 {[%emt 0:00:25]} 22. Qxf6+ {[%emt 0:00:08]} Kxf6 {[%emt 0:00:02]} 23. Nd7+ {[%emt 0:00:01]} Kg7 {[%emt 0:00:08]} 24. Nxb6 {[%emt 0:00:02]} Rad8 {[%emt 0:00:18]} 25. Kc2 {[%emt 0:00:14]} Rhe8 {[%emt 0:00:42]} 26. a3 {[%emt 0:00:19]} Ba5 {[%emt 0:00:16]} 27. Nc4 {[%emt 0:00:02]} Bc7 {[%emt 0:00:01]} 28. Rxe8 {[%emt 0:00:15]} Rxe8 {[%emt 0:00:00]} 29. d5 {[%emt 0:00:08]} cxd5 {[%emt 0:00:05]} 30. Nxd5 {[%emt 0:00:22]} Bb8 {[%emt 0:00:08]} 31. b4 {[%emt 0:00:30]} Ba7 {[%emt 0:00:13]} 32. Rd2 {[%emt 0:00:14]} Rc8 {[%emt 0:00:26]} 33. Kb3 {[%emt 0:00:02]} Rd8 {[%emt 0:00:09]} 34. Na5 {[%emt 0:00:35]} 1-0

[Event "Wuerttemberg Rapid Teams 2024"]
[Site "B?blingen, Germany"]
[Date "2024.04.13"]
[Round "3.5"]
[White "Oberst, Thomas"]
[Black "Kuklin, Valentin"]
[Result "0-1"]
[ECO "A36"]
[WhiteElo "2227"]
[BlackElo "2367"]
[Annotator "RC"]
[PlyCount "74"]
[EventDate "2024.04.13"]
[EventType "team-tourn"]
[SourceTitle "playchess.com"]
[Source "ChessBase"]
[SourceQuality "1"]
[TimeControl "900+5"]

1. c4 {[%emt 0:00:03]} c5 {[%emt 0:00:04]} 2. Nc3 {[%emt 0:00:02]} Nc6 {[%emt 0:00:04]} 3. e4 {[%emt 0:00:05]} g6 {[%emt 0:00:43]} 4. d3 {[%emt 0:00:02]} Bg7 {[%emt 0:00:03]} 5. g3 {[%emt 0:00:05]} d6 {[%emt 0:00:35]} 6. Bg2 {[%emt 0:00:01]} e5 {[%emt 0:00:25]} 7. Nd5 {[%emt 0:01:11]} Nge7 {[%emt 0:01:01]} 8. Bg5 {[%emt 0:01:19]} h6 {[%emt 0:00:38]} 9. Be3 {[%emt 0:00:14]} Nxd5 {[%emt 0:01:05]} 10. cxd5 {[%emt 0:00:24]} Nd4 {[%emt 0:00:11]} 11. Ne2 {[%emt 0:03:03]} Bg4 {[%emt 0:01:28]} 12. Bxd4 {[%emt 0:00:02]} exd4 {[%emt 0:01:50]} 13. O-O {[%emt 0:03:41]} O-O {[%emt 0:00:44]} 14. f3 {[%emt 0:00:15]} Bd7 {[%emt 0:00:02]} 15. f4 {[%emt 0:00:04]} b5 {[%emt 0:00:45]} 16. b3 {[%emt 0:00:07]} a5 {[%emt 0:01:24]} 17. Rb1 {[%emt 0:00:17]} a4 {[%emt 0:00:18]} 18. Kh1 {[%emt 0:00:14]} axb3 {[%emt 0:00:07]} 19. axb3 {[%emt 0:00:01]} Ra2 {[%emt 0:00:11]} 20. Nc1 {[%emt 0:00:03]} Ra3 {[%emt 0:00:14]} 21. Qe2 {[%emt 0:00:09]} Re8 {[%emt 0:00:09]} 22. g4 {[%emt 0:00:25]} Qh4 {[%emt 0:00:19]} 23. Bf3 {[%emt 0:00:49]} g5 {[%emt 0:00:41]} 24. f5 {[%emt 0:00:36]} Be5 {[%emt 0:00:07]} 25. Rf2 {[%emt 0:00:22]} Kg7 {[%emt 0:00:15]} 26. Rg2 {[%emt 0:00:02]} Rea8 {[%emt 0:00:25]} 27. Qf2 {[%emt 0:00:47]} Ra1 {[%emt 0:00:31]} 28. Qxh4 {[%emt 0:00:08]} gxh4 {[%emt 0:00:11]} 29. Rxa1 {[%emt 0:00:07]} Rxa1 {[%emt 0:00:04]} 30. Rg1 {[%emt 0:00:01]} Rb1 {[%emt 0:00:08]} 31. Kg2 {[%emt 0:00:15]} Kf6 {[%emt 0:00:06]} 32. Kh3 {[%emt 0:00:06]} Kg5 {[%emt 0:00:09]} 33. Rd1 {[%emt 0:00:22]} b4 {[%emt 0:00:17]} 34. Rg1 {[%emt 0:00:44]} Bb5 {[%emt 0:00:07]} 35. Kg2 {[%emt 0:00:07]} Rb2+ {[%emt 0:00:19]} 36. Be2 {[%emt 0:00:02]} Bf4 {[%emt 0:00:15]} 37. Kf3 {[%emt 0:00:08]} Rc2 {[%emt 0:00:06]} 0-1

[Event "Wuerttemberg Rapid Teams 2024"]
[Site "B?blingen, Germany"]
[Date "2024.04.13"]
[Round "3.6"]
[White "Vujic, Branimir"]
[Black "Namyslo, Holger"]
[Result "1/2-1/2"]
[ECO "D00"]
[WhiteElo "2218"]
[BlackElo "2125"]
[Annotator "RC"]
[PlyCount "61"]
[EventDate "2024.04.13"]
[EventType "team-tourn"]
[SourceTitle "playchess.com"]
[Source "ChessBase"]
[SourceQuality "1"]
[TimeControl "900+5"]

1. d4 {[%emt 0:03:09]} d5 {[%emt 0:00:02]} 2. Bf4 {[%emt 0:00:01]} c5 {[%emt 0:00:01]} 3. e3 {[%emt 0:00:01]} Nc6 {[%emt 0:00:01]} 4. Nc3 {[%emt 0:00:06]} a6 {[%emt 0:00:12]} 5. dxc5 {[%emt 0:00:05]} e5 {[%emt 0:00:29]} 6. Bg3 {[%emt 0:00:01]} Be6 {[%emt 0:00:23]} 7. Nf3 {[%emt 0:00:05]} f6 {[%emt 0:00:04]} 8. Na4 {[%emt 0:00:13]} Bxc5 {[%emt 0:00:26]} 9. Nxc5 {[%emt 0:00:06]} Qa5+ {[%emt 0:00:02]} 10. c3 {[%emt 0:00:02]} Qxc5 {[%emt 0:00:03]} 11. Be2 {[%emt 0:00:07]} Nge7 {[%emt 0:00:09]} 12. O-O {[%emt 0:00:04]} Qb6 {[%emt 0:00:08]} 13. Qb3 {[%emt 0:00:02]} Qxb3 {[%emt 0:00:08]} 14. axb3 {[%emt 0:00:01]} Kf7 {[%emt 0:00:31]} 15. b4 {[%emt 0:00:02]} Nf5 {[%emt 0:00:32]} 16. Rfd1 {[%emt 0:00:15]} h5 {[%emt 0:00:19]} 17. h3 {[%emt 0:00:11]} Nxg3 {[%emt 0:00:15]} 18. fxg3 {[%emt 0:00:02]} g6 {[%emt 0:00:29]} 19. Nd2 {[%emt 0:00:35]} d4 {[%emt 0:00:38]} 20. exd4 {[%emt 0:00:03]} exd4 {[%emt 0:00:01]} 21. Bc4 {[%emt 0:00:09]} Rhe8 {[%emt 0:00:32]} 22. Bxe6+ {[%emt 0:00:08]} Rxe6 {[%emt 0:00:05]} 23. Nb3 {[%emt 0:00:01]} dxc3 {[%emt 0:00:14]} 24. bxc3 {[%emt 0:00:03]} Rd8 {[%emt 0:00:30]} 25. Nc5 {[%emt 0:00:26]} Rxd1+ {[%emt 0:00:56]} 26. Rxd1 {[%emt 0:00:37]} Re7 {[%emt 0:00:02]} 27. Rd6 {[%emt 0:00:13]} Rc7 {[%emt 0:01:18]} 28. g4 {[%emt 0:04:41]} hxg4 {[%emt 0:00:04]} 29. hxg4 {[%emt 0:00:01]} a5 {[%emt 0:00:32]} 30. g5 {[%emt 0:02:52]} fxg5 {[%emt 0:02:28]} 31. b5 {[%emt 0:00:03]} 1/2-1/2

[Event "Wuerttemberg Rapid Teams 2024"]
[Site "B?blingen, Germany"]
[Date "2024.04.13"]
[Round "3.7"]
[White "Schulze, Andreas"]
[Black "Schuh, Karsten"]
[Result "1-0"]
[ECO "B49"]
[WhiteElo "2080"]
[BlackElo "2133"]
[Annotator "RC"]
[PlyCount "101"]
[EventDate "2024.04.13"]
[EventType "team-tourn"]
[SourceTitle "playchess.com"]
[Source "ChessBase"]
[SourceQuality "1"]
[TimeControl "900+5"]

1. e4 {[%emt 0:00:07]} c5 {[%emt 0:00:01]} 2. Nf3 {[%emt 0:00:11]} Nc6 {[%emt 0:00:02]} 3. d4 {[%emt 0:00:02]} cxd4 {[%emt 0:00:01]} 4. Nxd4 {[%emt 0:00:02]} Qc7 {[%emt 0:00:01]} 5. Nc3 {[%emt 0:00:45]} e6 {[%emt 0:00:02]} 6. Be2 {[%emt 0:00:13]} a6 {[%emt 0:00:02]} 7. Be3 {[%emt 0:00:08]} Nf6 {[%emt 0:00:02]} 8. O-O {[%emt 0:00:10]} Bb4 {[%emt 0:00:02]} 9. Bf3 {[%emt 0:02:17]} O-O {[%emt 0:00:30]} 10. Nxc6 {[%emt 0:00:13]} bxc6 {[%emt 0:00:06]} 11. Ne2 {[%emt 0:00:20]} Bd6 {[%emt 0:03:57]} 12. Kh1 {[%emt 0:01:49]} Be5 {[%emt 0:00:25]} 13. c3 {[%emt 0:00:22]} Rb8 {[%emt 0:00:07]} 14. Qc2 {[%emt 0:00:08]} d5 {[%emt 0:00:37]} 15. exd5 {[%emt 0:00:14]} cxd5 {[%emt 0:00:10]} 16. Bd4 {[%emt 0:01:07]} Bxd4 {[%emt 0:00:23]} 17. Nxd4 {[%emt 0:00:01]} e5 {[%emt 0:00:01]} 18. Nb3 {[%emt 0:00:11]} e4 {[%emt 0:00:52]} 19. Be2 {[%emt 0:00:07]} Bg4 {[%emt 0:00:04]} 20. h3 {[%emt 0:00:08]} Bxe2 {[%emt 0:02:21]} 21. Qxe2 {[%emt 0:00:02]} Qb6 {[%emt 0:01:02]} 22. Rad1 {[%emt 0:01:14]} Rfe8 {[%emt 0:01:56]} 23. Qe3 {[%emt 0:00:32]} Qxe3 {[%emt 0:00:48]} 24. fxe3 {[%emt 0:00:01]} a5 {[%emt 0:00:01]} 25. Rd2 {[%emt 0:00:05]} a4 {[%emt 0:00:02]} 26. Nd4 {[%emt 0:00:13]} Rec8 {[%emt 0:00:13]} 27. a3 {[%emt 0:00:03]} Rb6 {[%emt 0:00:10]} 28. g4 {[%emt 0:01:10]} h6 {[%emt 0:00:01]} 29. Rff2 {[%emt 0:00:20]} Rcb8 {[%emt 0:00:18]} 30. Kg2 {[%emt 0:00:04]} Nd7 {[%emt 0:00:08]} 31. Nf5 {[%emt 0:00:06]} Ne5 {[%emt 0:00:21]} 32. Ne7+ {[%emt 0:00:06]} Kf8 {[%emt 0:00:26]} 33. Nxd5 {[%emt 0:00:02]} Rd6 {[%emt 0:00:18]} 34. Nb4 {[%emt 0:00:46]} Rxd2 {[%emt 0:00:44]} 35. Rxd2 {[%emt 0:00:02]} Nc4 {[%emt 0:00:00]} 36. Rd4 {[%emt 0:00:42]} Nxb2 {[%emt 0:00:11]} 37. Rxe4 {[%emt 0:00:02]} Nd1 {[%emt 0:00:12]} 38. Nd5 {[%emt 0:00:53]} Rb2+ {[%emt 0:00:40]} 39. Kf3 {[%emt 0:00:17]} g6 {[%emt 0:00:22]} 40. Rxa4 {[%emt 0:00:06]} Rh2 {[%emt 0:00:01]} 41. Kg3 {[%emt 0:00:12]} Rc2 {[%emt 0:00:05]} 42. Rc4 {[%emt 0:00:23]} Nb2 {[%emt 0:00:09]} 43. Rc8+ {[%emt 0:00:02]} Kg7 {[%emt 0:00:01]} 44. h4 {[%emt 0:00:10]} g5 {[%emt 0:00:09]} 45. Ne7 {[%emt 0:00:17]} gxh4+ {[%emt 0:00:13]} 46. Kxh4 {[%emt 0:00:03]} Nd1 {[%emt 0:00:03]} 47. Nf5+ {[%emt 0:00:05]} Kf6 {[%emt 0:00:03]} 48. a4 {[%emt 0:00:37]} Nxc3 {[%emt 0:00:24]} 49. Nd6 {[%emt 0:00:08]} Rh2+ {[%emt 0:00:14]} 50. Kg3 {[%emt 0:00:01]} Rc2 {[%emt 0:00:04]} 51. Rxc3 {[%emt 0:00:06]} 1-0